bitfinex-derivatives/quotes_BTCF0:USTF0_20250509
["timestamp","ask_amount","ask_price","bid_price","bid_amount"]
[1746771639350,0.89676374,103100.0,103090.0,0.32221888]
[1746771640249,0.8222055,103100.0,103090.0,0.32221888]
[1746771640445,0.96465374,103100.0,103090.0,0.32221888]
[1746771640844,0.96465374,103100.0,103090.0,0.32205433]
[1746771646460,0.77063824,103100.0,103090.0,0.32205433]
[1746771646756,0.96465374,103100.0,103090.0,0.32205433]
[1746771647455,0.8222055,103100.0,103090.0,0.32205433]
[1746771647760,0.89342962,103100.0,103090.0,0.32205433]
[1746771648061,0.96465374,103100.0,103090.0,0.3223427]
[1746771648246,0.9822055,103100.0,103090.0,0.3223427]
[1746771648558,0.78819,103100.0,103090.0,0.3223427]
[1746771648764,0.85941412,103100.0,103090.0,0.3223427]
[1746771649061,0.93063824,103100.0,103090.0,0.3223427]
[1746771649249,0.96465374,103100.0,103090.0,0.3223427]
[1746771649658,0.96465374,103100.0,103090.0,0.32234269]
[1746771650159,0.8222055,103100.0,103090.0,0.32234269]
[1746771650459,0.8222055,103100.0,103090.0,0.32231789]
[1746771650757,0.76578473,103100.0,103090.0,0.32231789]
[1746771651150,0.52913649,103100.0,103090.0,0.32231789]
[1746771651352,0.52913649,103100.0,103090.0,0.50231789]
[1746771651353,0.16833649,103100.0,103090.0,0.50231789]
[1746771651553,0.23956061,103100.0,103090.0,0.32231789]
[1746771652154,0.16833649,103100.0,103090.0,0.32231789]
[1746771652355,0.23956061,103100.0,103090.0,0.32231789]
[1746771652761,0.16833649,103100.0,103090.0,0.32231789]
[1746771653164,0.23956061,103100.0,103090.0,0.32231789]
[1746771653668,0.16833649,103100.0,103090.0,0.32231789]
[1746771653866,0.23956061,103100.0,103090.0,0.32231789]
[1746771654166,0.16833649,103100.0,103090.0,0.32231789]
[1746771654369,0.23956061,103100.0,103090.0,0.32231789]
[1746771655068,0.23956061,103100.0,103090.0,0.32234199]
[1746771655970,0.16833649,103100.0,103090.0,0.32234199]
[1746771656164,0.34288473,103100.0,103090.0,0.32234199]
[1746771656560,0.37398473,103100.0,103090.0,0.32234199]
[1746771656857,0.56800023,103100.0,103090.0,0.32234199]
[1746771657057,0.42555199,103100.0,103090.0,0.322342]
[1746771657261,0.37398473,103100.0,103090.0,0.322342]
[1746771657658,0.73478473,103100.0,103090.0,0.322342]
[1746771659569,0.66356061,103100.0,103090.0,0.322342]
[1746771659958,0.85757611,103100.0,103090.0,0.320342]
[1746771660163,0.85757611,103100.0,103090.0,0.322342]
[1746771661465,0.88817611,103100.0,103090.0,0.322342]
[1746771661870,0.88817611,103100.0,103090.0,0.320342]
[1746771662071,0.88817611,103100.0,103090.0,0.322342]
[1746771662269,0.88817611,103100.0,103090.0,0.324342]
[1746771662873,0.88817611,103100.0,103090.0,0.326342]
[1746771663374,0.88817611,103100.0,103090.0,0.32587008]
[1746771664777,0.81695199,103100.0,103090.0,0.32587008]
[1746771664969,0.26213649,103100.0,103090.0,0.32187008]
[1746771665160,0.52737611,103100.0,103090.0,0.32789168]
[1746771665365,0.52737611,103100.0,103090.0,0.32989168]
[1746771666874,0.45615199,103100.0,103090.0,0.32989168]
[1746771667069,0.49677611,103100.0,103090.0,0.32998321]
[1746771667466,0.49192294,103100.0,103090.0,0.32998321]
[1746771668572,0.45309882,103100.0,103090.0,0.32998321]
[1746771668766,0.52432294,103100.0,103090.0,0.32998321]
[1746771670370,0.52432294,103100.0,103090.0,0.47780223]
[1746771670766,0.88512294,103100.0,103090.0,0.47780223]
[1746771670971,0.52432294,103100.0,103090.0,0.47780223]
[1746771671376,0.88512294,103100.0,103090.0,0.47780223]
[1746771672173,0.45309882,103100.0,103090.0,0.47780223]
[1746771672369,0.52432294,103100.0,103090.0,0.47780223]
[1746771672569,0.52432294,103100.0,103090.0,0.48580223]
[1746771672770,0.52432294,103100.0,103090.0,0.49380223]
[1746771673574,0.52432294,103100.0,103090.0,0.47980223]
[1746771673773,0.52432294,103100.0,103090.0,0.48580223]
[1746771674179,0.45309882,103100.0,103090.0,0.47780223]
[1746771674476,0.25180356,103100.0,103090.0,0.47780223]
[1746771674676,0.44581906,103100.0,103090.0,0.47380223]
[1746771675077,0.51704318,103100.0,103090.0,0.47380223]
[1746771675779,0.51704318,103100.0,103090.0,0.47416093]
[1746771676079,0.51704318,103100.0,103090.0,0.47016093]
[1746771678981,0.44823906,103100.0,103090.0,0.47016093]
[1746771679182,0.51946318,103100.0,103090.0,0.47016093]
[1746771679383,0.51946318,103100.0,103090.0,0.32234191]
[1746771680385,0.44823906,103100.0,103090.0,0.32234191]
[1746771680586,0.51946318,103100.0,103090.0,0.32234191]
[1746771682084,0.51946318,103100.0,103090.0,0.48234191]
[1746771682588,0.51461001,103100.0,103090.0,0.48234191]
[1746771682884,0.51461001,103100.0,103090.0,0.47096727]
[1746771683485,0.51461001,103100.0,103090.0,0.31096727]
[1746771684496,0.44338589,103100.0,103090.0,0.31096727]
[1746771684898,0.51461001,103100.0,103090.0,0.31096727]
[1746771685998,0.44338589,103100.0,103090.0,0.31096727]
[1746771686700,0.51461001,103100.0,103090.0,0.31096727]
[1746771687000,0.51461001,103100.0,103090.0,0.32196592]
[1746771688399,0.44338589,103100.0,103090.0,0.32196592]
[1746771688602,0.51461001,103100.0,103090.0,0.32196592]
[1746771689401,0.44338589,103100.0,103090.0,0.32196592]
[1746771689703,0.51461001,103100.0,103090.0,0.32196592]
[1746771689902,0.44338589,103100.0,103090.0,0.32196592]
[1746771690201,0.51461001,103100.0,103090.0,0.32196592]
[1746771691404,0.94663413,103100.0,103090.0,0.32196592]
[1746771691591,0.94663413,103100.0,103090.0,0.28876592]
[1746771692096,0.96418589,103100.0,103090.0,0.27776727]
[1746771692407,1.10663413,103100.0,103090.0,0.27776727]
[1746771692905,1.10663413,103100.0,103090.0,0.28859952]
[1746771693403,1.10663413,103100.0,103090.0,0.25659952]
[1746771693605,1.10663413,103100.0,103090.0,0.24576727]
[1746771695396,0.96418589,103100.0,103090.0,0.24576727]
[1746771695597,1.10663413,103100.0,103090.0,0.24576727]
[1746771696007,1.10663413,103100.0,103090.0,0.25659958]
[1746771697907,1.10663413,103100.0,103090.0,0.24576727]
[1746771698304,0.96418589,103100.0,103090.0,0.24576727]
[1746771698609,1.10178067,103100.0,103090.0,0.27776727]
[1746771699003,1.10178067,103100.0,103090.0,0.28880135]
[1746771700811,1.10178067,103100.0,103090.0,0.2888435]
[1746771703012,1.10178067,103100.0,103090.0,0.27776727]
[1746771703311,0.95933243,103100.0,103090.0,0.27776727]
[1746771703511,1.10178067,103100.0,103090.0,0.27776727]
[1746771703912,0.74098067,103100.0,103090.0,0.27776727]
[1746771704110,0.95933243,103100.0,103090.0,0.27776727]
[1746771704311,1.10178067,103100.0,103090.0,0.27776727]
[1746771704813,1.10178067,103100.0,103090.0,0.30896727]
[1746771705111,1.10178067,103100.0,103090.0,0.3198147]
[1746771706000,1.10178067,103100.0,103090.0,0.30896727]
[1746771708116,0.79933243,103100.0,103090.0,0.30896727]
[1746771708507,0.87055655,103100.0,103090.0,0.30896727]
[1746771708910,0.94178067,103100.0,103090.0,0.3198272]
[1746771709722,0.87055655,103100.0,103090.0,0.3198272]
[1746771710110,0.79933243,103100.0,103090.0,0.3198272]
[1746771710417,0.87055655,103100.0,103090.0,0.3198272]
[1746771710618,0.79933243,103100.0,103090.0,0.32027419]
[1746771710918,0.87055655,103100.0,103090.0,0.32027419]
[1746771711720,0.87055655,103100.0,103090.0,0.3203191]
[1746771713518,0.94178067,103100.0,103090.0,0.3203191]
[1746771713817,0.87055655,103100.0,103090.0,0.3203191]
[1746771714817,0.79933243,103100.0,103090.0,0.3203191]
[1746771715013,0.87055655,103100.0,103090.0,0.3203191]
[1746771715211,0.87055655,103100.0,103090.0,0.32035996]
[1746771715719,0.86570315,103100.0,103090.0,0.33035996]
[1746771715919,0.79447903,103100.0,103090.0,0.33035996]
[1746771716118,0.86570315,103100.0,103090.0,0.34035996]
[1746771716713,0.86570315,103100.0,103090.0,0.33235996]
[1746771717117,0.79447903,103100.0,103090.0,0.33246952]
[1746771717317,0.86570315,103100.0,103090.0,0.33246952]
[1746771717520,0.86570315,103100.0,103090.0,0.32446952]
[1746771717821,0.79447903,103100.0,103090.0,0.32446952]
[1746771718123,0.86570315,103100.0,103090.0,0.32446952]
[1746771719023,0.86570315,103100.0,103090.0,0.32454364]
[1746771719219,0.79447903,103100.0,103090.0,0.32454364]
[1746771719424,0.50486353,103100.0,103090.0,0.32454364]
[1746771719624,0.57608765,103100.0,103090.0,0.32454364]
[1746771719818,0.50486353,103100.0,103090.0,0.32454364]
[1746771720020,0.57608765,103100.0,103090.0,0.32454364]
[1746771721424,0.21528765,103100.0,103090.0,0.32454364]
[1746771721619,0.57608765,103100.0,103090.0,0.32454364]
[1746771722229,0.50486353,103100.0,103090.0,0.32454364]
[1746771722526,0.57608765,103100.0,103090.0,0.32454364]
[1746771723428,0.50486353,103100.0,103090.0,0.32454364]
[1746771723615,0.57608765,103100.0,103090.0,0.32454364]
[1746771725232,0.50486353,103100.0,103090.0,0.32454364]
[1746771725427,0.57608765,103100.0,103090.0,0.32454364]
[1746771727030,0.21528765,103100.0,103090.0,0.32454364]
[1746771727237,0.57608765,103100.0,103090.0,0.32454364]
[1746771727528,0.77010315,103100.0,103090.0,0.32454364]
[1746771728229,0.57608765,103100.0,103090.0,0.32454364]
[1746771728427,0.50486353,103100.0,103090.0,0.32454364]
[1746771728932,0.57608765,103100.0,103090.0,0.32454364]
[1746771729134,0.57608765,103100.0,103090.0,0.48454364]
[1746771731034,0.50486353,103100.0,103090.0,0.48454364]
[1746771731224,0.50001013,103100.0,103090.0,0.48454364]
[1746771732635,0.57123425,103100.0,103090.0,0.48454364]
[1746771734131,0.50001013,103100.0,103090.0,0.48454364]
[1746771735136,0.57123425,103100.0,103090.0,0.48454364]
[1746771737338,0.50001013,103100.0,103090.0,0.67454364]
[1746771737539,0.50001013,103100.0,103090.0,0.48454364]
[1746771738131,0.13921013,103100.0,103090.0,0.48454364]
[1746771738434,0.12738036,103100.0,103090.0,0.48454364]
[1746771738638,0.12738036,103100.0,103090.0,0.63236266]
[1746771739441,0.12738036,103100.0,103090.0,0.62836266]
[1746771739640,0.12738036,103100.0,103090.0,0.63436266]
[1746771739846,0.19860448,103100.0,103090.0,0.62346266]
[1746771740135,0.39261998,103100.0,103090.0,0.60142021]
[1746771740343,0.48761998,103100.0,103090.0,0.59742021]
[1746771740641,0.29360448,103100.0,103090.0,0.60342021]
[1746771741138,0.29360448,103100.0,103090.0,0.58825332]
[1746771741638,0.22238036,103100.0,103090.0,0.58825332]
[1746771741939,0.29360448,103100.0,103090.0,0.58825332]
[1746771743148,0.22238036,103100.0,103090.0,0.58825332]
[1746771743733,0.29360448,103100.0,103090.0,0.58825332]
[1746771744328,0.29360448,103100.0,103090.0,0.42825332]
[1746771744641,0.48761998,103100.0,103090.0,0.42825332]
[1746771745039,0.41639586,103100.0,103090.0,0.42825332]
[1746771745229,0.48761998,103100.0,103090.0,0.42825332]
[1746771745433,0.41639586,103100.0,103090.0,0.42825332]
[1746771745635,0.48761998,103100.0,103090.0,0.42825332]
[1746771746142,0.41639586,103100.0,103090.0,0.42825332]
[1746771746345,0.48761998,103100.0,103090.0,0.42825332]
[1746771747141,0.48761998,103100.0,103090.0,0.58825332]
[1746771748542,0.41639586,103100.0,103090.0,0.58825332]
[1746771748742,0.48761998,103100.0,103090.0,0.58825332]
[1746771749138,0.41639586,103100.0,103090.0,0.58825332]
[1746771749344,0.48761998,103100.0,103090.0,0.42825332]
[1746771749846,0.48761998,103100.0,103090.0,0.2804343]
[1746771750146,0.48761998,103100.0,103090.0,0.4404343]
[1746771751847,0.41639586,103100.0,103090.0,0.4404343]
[1746771752046,0.48761998,103100.0,103090.0,0.4404343]
[1746771752248,0.41639586,103100.0,103090.0,0.4404343]
[1746771752547,0.41639586,103100.0,103090.0,0.4384343]
[1746771752947,0.41639586,103100.0,103090.0,0.4364343]
[1746771755154,0.22238036,103100.0,103090.0,0.2764343]
[1746771756152,0.22238036,103100.0,103090.0,0.4364343]
[1746771759354,0.29360448,103100.0,103090.0,0.4364343]
[1746771759652,0.22238036,103100.0,103090.0,0.4364343]
[1746771759956,0.29360448,103100.0,103090.0,0.4364343]
[1746771760151,0.29360448,103100.0,103090.0,0.2764343]
[1746771761854,0.22238036,103100.0,103090.0,0.2764343]
[1746771762056,0.29360448,103100.0,103090.0,0.2764343]
[1746771762257,0.22238036,103100.0,103090.0,0.2764343]
[1746771762655,0.29360448,103100.0,103090.0,0.2764343]
[1746771763154,0.22238036,103100.0,103090.0,0.2764343]
[1746771763356,0.29360448,103100.0,103090.0,0.2764343]
[1746771763557,0.22238036,103100.0,103090.0,0.2764343]
[1746771763854,0.29360448,103100.0,103090.0,0.2764343]
[1746771764657,0.29360448,103100.0,103090.0,0.43906011]
[1746771765156,0.29360448,103100.0,103090.0,0.42425332]
[1746771765353,0.48761998,103100.0,103090.0,0.42425332]
[1746771765656,0.41639586,103100.0,103090.0,0.42425332]
[1746771765857,0.29360448,103100.0,103090.0,0.42425332]
[1746771766752,0.22238036,103100.0,103090.0,0.43898649]
[1746771766958,0.29360448,103100.0,103090.0,0.43898649]
[1746771767159,0.22238036,103100.0,103090.0,0.43898649]
[1746771767457,0.29360448,103100.0,103090.0,0.43898649]
[1746771769161,0.22238036,103100.0,103090.0,0.43898649]
[1746771772869,0.19218036,103100.0,103090.0,0.43898649]
[1746771774270,0.19218036,103100.0,103090.0,0.59898649]
[1746771775171,0.19218036,103100.0,103090.0,0.43898649]
[1746771775672,0.12738036,103100.0,103090.0,0.43898649]
[1746771776373,0.12738036,103100.0,103090.0,0.44984524]
[1746771776972,0.12738036,103100.0,103090.0,0.44984528]
[1746771777472,0.15948036,103100.0,103090.0,0.43898649]
[1746771782171,0.19098036,103100.0,103090.0,0.43898649]
[1746771782570,0.26220448,103100.0,103090.0,0.43898649]
[1746771782971,0.26220448,103100.0,103090.0,0.42425332]
[1746771783477,0.19098036,103100.0,103090.0,0.42425332]
[1746771783677,0.26220448,103100.0,103090.0,0.42425332]
[1746771783878,0.19098036,103100.0,103090.0,0.42425332]
[1746771784073,0.26220448,103100.0,103090.0,0.42425332]
[1746771784478,0.19098036,103100.0,103090.0,0.42425332]
[1746771784679,0.26220448,103100.0,103090.0,0.42425332]
[1746771785179,0.19098036,103100.0,103090.0,0.42425332]
[1746771787073,0.12738036,103100.0,103090.0,0.42425332]
[1746771788079,0.12738036,103100.0,103090.0,0.43907326]
[1746771791079,0.12738036,103100.0,103090.0,0.59907326]
[1746771792282,0.12738036,103100.0,103090.0,0.43907326]
[1746771795488,0.12738036,103100.0,103090.0,0.42425332]
[1746771796786,0.12738036,103100.0,103090.0,0.43904657]
[1746771798889,0.12738036,103100.0,103090.0,0.69027069]
[1746771799089,0.12738036,103100.0,103090.0,0.67027069]
[1746771799292,0.12738036,103100.0,103090.0,0.68114617]
[1746771799594,0.12738036,103100.0,103090.0,0.60992205]
[1746771799797,0.12738036,103100.0,103090.0,0.79192205]
[1746771800096,0.12738036,103100.0,103090.0,0.61192205]
[1746771800296,0.12738036,103100.0,103090.0,0.61195857]
[1746771800501,0.12738036,103100.0,103090.0,0.61295857]
[1746771800795,0.11524761,103100.0,103090.0,0.61295857]
[1746771803998,0.11524761,103100.0,103090.0,0.61305867]
[1746771805492,0.11524761,103100.0,103090.0,0.62305867]
[1746771805698,0.11524761,103100.0,103090.0,0.62319194]
[1746771808296,0.11524761,103100.0,103090.0,0.69441606]
[1746771808499,1.3765301,103120.0,103090.0,1.48420588]
[1746771808500,0.6762464,103120.0,103090.0,1.48420588]
[1746771808701,0.7394464,103120.0,103110.0,0.1939967]
[1746771808894,0.7394464,103120.0,103110.0,0.40793532]
[1746771809089,0.7394464,103120.0,103110.0,0.56793532]
[1746771809400,0.73489767,103120.0,103110.0,0.56816209]
[1746771809599,0.73489767,103120.0,103110.0,0.74816209]
[1746771809794,0.73489767,103120.0,103110.0,0.75016209]
[1746771809990,0.70259767,103120.0,103110.0,1.14096209]
[1746771810194,0.67169767,103120.0,103110.0,2.64096209]
[1746771810602,0.67169767,103120.0,103110.0,2.72202275]
[1746771810803,0.67169767,103120.0,103110.0,2.65079863]
[1746771811001,0.67169767,103120.0,103110.0,2.72390855]
[1746771811206,0.6644202,103120.0,103110.0,2.49268443]
[1746771811496,0.6644202,103120.0,103110.0,2.49268504]
[1746771811804,0.6963202,103120.0,103110.0,2.5876566]
[1746771812011,0.76754432,103120.0,103110.0,2.46271562]
[1746771812192,0.83034432,103120.0,103110.0,2.52845562]
[1746771812392,0.83034432,103120.0,103110.0,2.70845562]
[1746771812597,1.19114432,103120.0,103110.0,2.16765562]
[1746771812801,1.19114432,103120.0,103110.0,2.15642551]
[1746771813101,1.38512212,103120.0,103110.0,1.93514551]
[1746771813506,1.19114432,103120.0,103110.0,1.93514551]
[1746771813998,1.1199202,103120.0,103110.0,1.93514551]
[1746771814198,1.19114432,103120.0,103110.0,1.92035226]
[1746771814604,0.7591202,103120.0,103110.0,1.92035226]
[1746771815200,0.062,103120.0,103110.0,1.92035226]
[1746771815401,0.062,103120.0,103110.0,2.1920202]
[1746771816106,0.062,103120.0,103110.0,2.26324432]
[1746771816322,0.36352,103130.0,103120.0,0.1939778]
[1746771816607,0.06682,103130.0,103120.0,0.51496476]
[1746771816801,0.06682,103130.0,103120.0,0.31496476]
[1746771817003,0.03572,103130.0,103120.0,0.38618888]
[1746771817204,0.03572,103130.0,103120.0,0.49496476]
[1746771817404,0.03572,103130.0,103120.0,0.56618888]
[1746771817609,0.06742,103130.0,103120.0,0.38618888]
[1746771817809,0.06742,103130.0,103120.0,0.58618888]
[1746771818107,0.06742,103130.0,103120.0,0.50399112]
[1746771818409,0.06742,103130.0,103120.0,0.51496289]
[1746771818605,0.06742,103130.0,103120.0,0.51596289]
[1746771818813,0.0625684,103130.0,103120.0,0.51596289]
[1746771819120,0.13379252,103130.0,103120.0,0.28326289]
[1746771819409,0.16479252,103130.0,103120.0,0.27229112]
[1746771820109,0.0935684,103130.0,103120.0,0.2572778]
[1746771820410,0.0935684,103130.0,103120.0,0.2672778]
[1746771820609,0.0935684,103130.0,103120.0,0.3633578]
[1746771821708,0.16479252,103130.0,103120.0,0.3633578]
[1746771822304,0.0935684,103130.0,103120.0,0.3633578]
[1746771824411,0.0625684,103130.0,103120.0,0.3633578]
[1746771824711,0.0625684,103130.0,103120.0,0.3943578]
[1746771825212,0.2225684,103130.0,103120.0,0.4908778]
[1746771825704,0.2225684,103130.0,103120.0,0.6708778]
[1746771825901,0.2225684,103130.0,103120.0,0.4908778]
[1746771826101,0.0625684,103130.0,103120.0,0.4908778]
[1746771827411,0.0625684,103130.0,103120.0,0.3637178]
[1746771827611,0.16449252,103130.0,103120.0,0.3637178]
[1746771828210,0.32449252,103130.0,103120.0,0.3537178]
[1746771828812,0.2532684,103130.0,103120.0,0.3537178]
[1746771829013,0.32449252,103130.0,103120.0,0.3537178]
[1746771829608,0.68529252,103130.0,103120.0,0.3537178]
[1746771830405,0.87925152,103130.0,103120.0,0.3537178]
[1746771830604,0.87925152,103130.0,103120.0,0.3535322]
[1746771831001,0.87925152,103130.0,103120.0,0.3935322]
[1746771831207,0.6140684,103130.0,103120.0,0.3935322]
[1746771831413,0.68529252,103130.0,103120.0,0.3935322]
[1746771831809,0.87925152,103130.0,103120.0,0.3935322]
[1746771832010,0.8080274,103130.0,103120.0,0.2570922]
[1746771832311,0.87925152,103130.0,103120.0,0.2570922]
[1746771834307,0.8080274,103130.0,103120.0,0.2570922]
[1746771834804,0.87925152,103130.0,103120.0,0.2570922]
[1746771835514,0.87925152,103130.0,103120.0,0.27198736]
[1746771835710,0.8080274,103130.0,103120.0,0.20968736]
[1746771835903,0.87925152,103130.0,103120.0,0.20968736]
[1746771836107,0.87925152,103130.0,103120.0,0.27568736]
[1746771836303,0.68529252,103130.0,103120.0,0.31568736]
[1746771836605,0.87925152,103130.0,103120.0,0.32657761]
[1746771836805,0.68529252,103130.0,103120.0,0.32657761]
[1746771837207,0.52529252,103130.0,103120.0,0.32657761]
[1746771837408,0.0932684,103130.0,103120.0,0.39780173]
[1746771837607,0.0932684,103130.0,103120.0,0.35657761]
[1746771838618,0.0625684,103130.0,103120.0,0.35657761]
[1746771838818,0.0625684,103130.0,103120.0,0.52657761]
[1746771839114,0.0625684,103130.0,103120.0,0.35657761]
[1746771839718,0.0625684,103130.0,103120.0,0.31657761]
[1746771840115,0.0625684,103130.0,103120.0,0.49657761]
[1746771840420,0.0625684,103130.0,103120.0,0.31657761]
[1746771841118,0.0625684,103130.0,103120.0,0.36657761]
[1746771841812,0.16509252,103130.0,103120.0,0.36657761]
[1746771842113,0.16509252,103130.0,103120.0,0.35168245]
[1746771842517,0.16509252,103130.0,103120.0,0.3107922]
[1746771843020,0.16509252,103130.0,103120.0,0.45861122]
[1746771843219,0.32509252,103130.0,103120.0,0.45861122]
[1746771843516,0.32509252,103130.0,103120.0,0.49101122]
[1746771846320,0.2538684,103130.0,103120.0,0.3431922]
[1746771847319,0.0938684,103130.0,103120.0,0.3431922]
[1746771848120,0.2538684,103130.0,103120.0,0.3431922]
[1746771849122,0.0938684,103130.0,103120.0,0.49101122]
[1746771849514,0.16509252,103130.0,103120.0,0.49101122]
[1746771849713,0.16509252,103130.0,103120.0,0.50594103]
[1746771851122,0.0938684,103130.0,103120.0,0.50594103]
[1746771851320,0.0938684,103130.0,103120.0,0.49101122]
[1746771853522,0.0625684,103130.0,103120.0,0.49101122]
[1746771855622,0.13379252,103130.0,103120.0,0.49101122]
[1746771855927,0.0625684,103130.0,103120.0,0.49101122]
[1746771860313,0.13379252,103130.0,103120.0,0.49101122]
[1746771861125,0.0625684,103130.0,103120.0,0.49101122]
[1746771862415,0.13379252,103130.0,103120.0,0.49101122]
[1746771862617,0.0625684,103130.0,103120.0,0.49101122]
[1746771865329,0.0625684,103130.0,103120.0,0.50576171]
[1746771866831,0.0625684,103130.0,103120.0,0.51660469]
[1746771867427,0.0625684,103130.0,103120.0,0.5018542]
[1746771867828,0.0625684,103130.0,103120.0,0.44101122]
[1746771868220,0.2225684,103130.0,103120.0,0.44101122]
[1746771870129,0.0625684,103130.0,103120.0,0.44101122]
[1746771870330,0.0625684,103130.0,103120.0,0.45583763]
[1746771870718,0.0625684,103130.0,103120.0,0.4666754]
[1746771871119,0.2225684,103130.0,103120.0,0.4666754]
[1746771871922,0.2225684,103130.0,103120.0,0.45583763]
[1746771872132,0.29379252,103130.0,103120.0,0.45583763]
[1746771872432,0.2225684,103130.0,103120.0,0.45583763]
[1746771872831,0.2225684,103130.0,103120.0,0.44101122]
[1746771873129,0.2225684,103130.0,103120.0,0.53625122]
[1746771874626,0.2225684,103130.0,103120.0,0.55104724]
[1746771874829,0.2225684,103130.0,103120.0,0.56188524]
[1746771875636,0.2225684,103130.0,103120.0,0.54708922]
[1746771875830,0.2225684,103130.0,103120.0,0.53625122]
[1746771877037,0.2781584,103130.0,103120.0,0.53625122]
[1746771878235,0.1181584,103130.0,103120.0,0.53625122]
[1746771879938,0.1181584,103130.0,103120.0,0.70625122]
[1746771880429,0.1181584,103130.0,103120.0,0.53625122]
[1746771881938,0.1181584,103130.0,103120.0,0.54710675]
[1746771882534,0.1181584,103130.0,103120.0,0.5620348]
[1746771884828,0.1181584,103130.0,103120.0,0.55117927]
[1746771885633,0.1181584,103130.0,103120.0,0.53625122]
[1746771885838,0.1181584,103130.0,103120.0,0.54625122]
[1746771886145,0.2781584,103130.0,103120.0,0.54625122]
[1746771887143,0.1181584,103130.0,103120.0,0.54625122]
[1746771888133,0.1205784,103130.0,103120.0,0.54625122]
[1746771888338,0.1205784,103130.0,103120.0,0.56097534]
[1746771888945,0.1205784,103130.0,103120.0,0.57182998]
[1746771890650,0.1205784,103130.0,103120.0,0.57182178]
[1746771890944,0.1205784,103130.0,103120.0,0.56097534]
[1746771891745,0.1205784,103130.0,103120.0,0.57181861]
[1746771892543,0.1205784,103130.0,103120.0,0.55709501]
[1746771892843,0.1205784,103130.0,103120.0,0.54625122]
[1746771896360,0.1205784,103130.0,103120.0,0.56097868]
[1746771896861,0.1205784,103130.0,103120.0,0.57183878]
[1746771898061,0.1205784,103130.0,103120.0,0.57183901]
[1746771898858,0.11330099,103130.0,103120.0,0.57183901]
[1746771900657,0.05801,103130.0,103120.0,1.23508725]
[1746771900857,0.05346174,103130.0,103120.0,1.16386313]
[1746771901052,0.00242,103130.0,103120.0,1.16386313]
[1746771901761,0.06186889,103140.0,103130.0,0.193959]
[1746771901959,0.06186889,103140.0,103130.0,0.62931933]
[1746771902258,0.2237,103140.0,103130.0,0.70054345]
[1746771902461,0.2237,103140.0,103130.0,0.65991933]
[1746771902659,0.2237,103140.0,103130.0,0.67464679]
[1746771903268,0.0326,103140.0,103130.0,0.95587091]
[1746771903560,0.3929,103150.0,103140.0,0.1939402]
[1746771903862,0.4257,103150.0,103140.0,0.26720053]
[1746771904066,0.0649,103150.0,103140.0,0.45720053]
[1746771904268,0.0649,103150.0,103140.0,0.43720053]
[1746771904563,0.0649,103150.0,103140.0,0.64192799]
[1746771904761,0.001,103150.0,103140.0,1.15470799]
[1746771904966,0.0307,103160.0,103140.0,1.15470799]
[1746771904967,0.0957,103160.0,103150.0,0.1939214]
[1746771905170,0.0957,103160.0,103150.0,0.29643776]
[1746771905859,0.4565,103160.0,103150.0,0.29643776]
[1746771906054,0.52772412,103160.0,103150.0,0.29643776]
[1746771906254,0.4565,103160.0,103150.0,0.29643776]
[1746771906457,0.72162672,103160.0,103150.0,0.30601674]
[1746771906658,0.6504026,103160.0,103150.0,0.30601674]
[1746771906865,0.72162672,103160.0,103150.0,0.26421674]
[1746771907067,0.79285084,103160.0,103150.0,0.26421674]
[1746771907365,0.95285084,103160.0,103150.0,0.26421674]
[1746771907764,0.95285084,103160.0,103150.0,0.25382506]
[1746771907961,0.95285084,103160.0,103150.0,0.24292506]
[1746771908561,0.95285084,103160.0,103150.0,0.21132506]
[1746771908955,0.95285084,103160.0,103150.0,0.19995641]
[1746771909357,0.8104026,103160.0,103150.0,0.19995641]
[1746771909664,0.8104026,103160.0,103150.0,0.19037743]
[1746771909665,0.95285084,103160.0,103150.0,0.19037743]
[1746771910461,0.95285084,103160.0,103150.0,0.22207743]
[1746771910661,0.88162672,103160.0,103150.0,0.22207743]
[1746771911360,0.88162672,103160.0,103150.0,0.21117743]
[1746771911561,0.75894824,103160.0,103150.0,0.21117743]
[1746771911764,0.68772412,103160.0,103150.0,0.21117743]
[1746771912068,0.88162672,103160.0,103150.0,0.21117743]
[1746771912263,0.8104026,103160.0,103150.0,0.21117743]
[1746771912455,0.88162672,103160.0,103150.0,0.21117743]
[1746771912660,0.68772412,103160.0,103150.0,0.24297743]
[1746771912864,0.88162672,103160.0,103150.0,0.24297743]
[1746771914763,0.6165,103160.0,103150.0,0.24297743]
[1746771914964,0.4496026,103160.0,103150.0,0.2537924]
[1746771915163,0.8104026,103160.0,103150.0,0.2537924]
[1746771915759,0.88162672,103160.0,103150.0,0.2537924]
[1746771915963,0.8104026,103160.0,103150.0,0.2537924]
[1746771916362,0.88162672,103160.0,103150.0,0.25406009]
[1746771916564,0.88162672,103160.0,103150.0,0.23933263]
[1746771916764,0.87677607,103160.0,103150.0,0.24359091]
[1746771917271,0.87677607,103160.0,103150.0,0.24289091]
[1746771917472,0.80555195,103160.0,103150.0,0.24289091]
[1746771917672,0.80555195,103160.0,103150.0,0.23419091]
[1746771917871,0.87677607,103160.0,103150.0,0.23419091]
[1746771918367,0.225,103160.0,103150.0,0.23447695]
[1746771918569,0.225,103160.0,103150.0,0.25447695]
[1746771918771,0.225,103160.0,103150.0,0.28457695]
[1746771918970,0.29622412,103160.0,103150.0,0.28457695]
[1746771919172,0.065,103160.0,103150.0,0.41237695]
[1746771919468,0.12894866,103160.0,103150.0,0.41237695]
[1746771919669,0.48974866,103160.0,103150.0,0.41237695]
[1746771919867,0.52014866,103160.0,103150.0,0.41237695]
[1746771920068,0.52014866,103160.0,103150.0,0.25237695]
[1746771920268,0.52014866,103160.0,103150.0,0.24147695]
[1746771920469,0.52014866,103160.0,103150.0,0.23057695]
[1746771920971,0.71405126,103160.0,103150.0,0.23057695]
[1746771921174,0.60892454,103160.0,103150.0,0.21057695]
[1746771921768,0.68014866,103160.0,103150.0,0.21057695]
[1746771922375,0.68014866,103160.0,103150.0,1.69967695]
[1746771922875,0.87405126,103160.0,103150.0,1.69967695]
[1746771923067,0.87405126,103160.0,103150.0,1.68877695]
[1746771923269,0.80282714,103160.0,103150.0,1.68877695]
[1746771923572,0.87405126,103160.0,103150.0,1.68977695]
[1746771923968,0.87405126,103160.0,103150.0,1.79937695]
[1746771924168,0.64282714,103160.0,103150.0,1.79937695]
[1746771924568,0.71405126,103160.0,103150.0,1.79937695]
[1746771924769,0.64282714,103160.0,103150.0,1.79937695]
[1746771925172,0.87405126,103160.0,103150.0,1.78847695]
[1746771925574,0.87405126,103160.0,103150.0,1.77757695]
[1746771925975,0.87405126,103160.0,103150.0,1.76667695]
[1746771926276,0.64282714,103160.0,103150.0,1.76667695]
[1746771926473,0.71405126,103160.0,103150.0,1.76667695]
[1746771926871,0.64282714,103160.0,103150.0,1.76667695]
[1746771927075,0.71405126,103160.0,103150.0,1.76667695]
[1746771927276,0.80282714,103160.0,103150.0,1.76667695]
[1746771927780,0.80282714,103160.0,103150.0,1.75577695]
[1746771928275,0.60892454,103160.0,103150.0,1.75577695]
[1746771928774,0.60892454,103160.0,103150.0,1.77017648]
[1746771928968,0.60892454,103160.0,103150.0,1.80127648]